[Event "Titled Tuesday Blitz August 22 Late 2023"]
[White "Jaskolka, Tomasz"]
[Black "Saif, Malek"]
[WhiteFideId "1170791"]
[BlackFideId "8104220"]
[WhiteElo "2521"]
[BlackElo "2671"]
[Result "1-0"]
[Round "11"]
[TimeControl "180+1"]
[Date "2023.08.22"]
[WhiteClock "0:00:10"]
[BlackClock "0:00:15"]
[Board "39"]

1. e4 {[%clk 0:03:00]}  e5 {[%clk 0:03:00]} 2. Nf3 {[%clk 0:03:01]}  Nc6 {[%clk 0:03:00]} 3. Bc4 {[%clk 0:03:01]}  Nf6 {[%clk 0:03:00]} 4. Ng5 {[%clk 0:03:00]}  Bc5 {[%clk 0:02:59]} 5. Nxf7 {[%clk 0:02:55]}  Bxf2+ {[%clk 0:02:59]} 6. Kf1 {[%clk 0:02:55]}  Qe7 {[%clk 0:02:58]} 7. Nxh8 {[%clk 0:02:54]}  d5 {[%clk 0:02:58]} 8. exd5 {[%clk 0:02:48]}  Nd4 {[%clk 0:02:59]} 9. d6 {[%clk 0:02:43]}  Qxd6 {[%clk 0:02:14]} 10. Nf7 {[%clk 0:02:24]}  Qc5 {[%clk 0:02:00]} 11. d3 {[%clk 0:02:24]}  Ng4 {[%clk 0:01:28]} 12. h3 {[%clk 0:01:48]}  Bg3 {[%clk 0:01:23]} 13. hxg4 {[%clk 0:01:15]}  b5 {[%clk 0:00:58]} 14. b4 {[%clk 0:01:02]}  Qc6 {[%clk 0:00:49]} 15. c3 {[%clk 0:00:49]}  Bb7 {[%clk 0:00:47]} 16. Qd2 {[%clk 0:00:36]}  Nf3 {[%clk 0:00:28]} 17. Qe3 {[%clk 0:00:27]}  Nh2+ {[%clk 0:00:13]} 18. Rxh2 {[%clk 0:00:27]}  Bxh2 {[%clk 0:00:14]} 19. Nxe5 {[%clk 0:00:25]}  Qxg2+ {[%clk 0:00:14]} 20. Ke1 {[%clk 0:00:25]}  Bg3+ {[%clk 0:00:07]} 21. Kd1 {[%clk 0:00:26]}  O-O-O {[%clk 0:00:08]} 22. Be6+ {[%clk 0:00:24]}  Kb8 {[%clk 0:00:08]} 23. Bd2 {[%clk 0:00:22]}  Qf1+ {[%clk 0:00:03]} 24. Kc2 {[%clk 0:00:22]}  Bxe5 {[%clk 0:00:04]} 25. Qxe5 {[%clk 0:00:20]}  Qxd3+ {[%clk 0:00:04]} 26. Kb2 {[%clk 0:00:20]}  Be4 {[%clk 0:00:04]} 27. Bb3 {[%clk 0:00:15]}  Bg6 {[%clk 0:00:02]} 28. Bf4 {[%clk 0:00:13]}  Qd7 {[%clk 0:00:03]} 29. Nd2 {[%clk 0:00:10]}  a6 {[%clk 0:00:04]} 30. Ne4 {[%clk 0:00:08]}  Bf7 {[%clk 0:00:04]} 31. Nc5 {[%clk 0:00:08]}  Qc6 {[%clk 0:00:05]} 32. Qxc7+ {[%clk 0:00:08]}  Qxc7 {[%clk 0:00:05]} 33. Bxc7+ {[%clk 0:00:09]}  Kxc7 {[%clk 0:00:06]} 34. Bxf7 {[%clk 0:00:10]}  Rd2+ {[%clk 0:00:06]} 35. Kb3 {[%clk 0:00:11]}  Rg2 {[%clk 0:00:07]} 36. Be6 {[%clk 0:00:11]}  g6 {[%clk 0:00:07]} 37. Rf1 {[%clk 0:00:10]}  h5 {[%clk 0:00:07]} 38. gxh5 {[%clk 0:00:10]}  gxh5 {[%clk 0:00:08]} 39. Rf7+ {[%clk 0:00:10]}  Kd6 {[%clk 0:00:08]} 40. Rd7+ {[%clk 0:00:10]}  Ke5 {[%clk 0:00:09]} 41. Rd5+ {[%clk 0:00:11]}  Kf4 {[%clk 0:00:09]} 42. Rxh5 {[%clk 0:00:12]}  Ke3 {[%clk 0:00:10]} 43. Nxa6 {[%clk 0:00:11]}  Kd3 {[%clk 0:00:10]} 44. Nc5+ {[%clk 0:00:11]}  Kd2 {[%clk 0:00:11]} 45. Bd7 {[%clk 0:00:10]}  Rg1 {[%clk 0:00:11]} 46. Bxb5 {[%clk 0:00:10]}  Rb1+ {[%clk 0:00:12]} 47. Kc4 {[%clk 0:00:11]}  Ra1 {[%clk 0:00:12]} 48. a4 {[%clk 0:00:10]}  Ke3 {[%clk 0:00:12]} 49. Rh3+ {[%clk 0:00:10]}  Kf4 {[%clk 0:00:13]} 50. a5 {[%clk 0:00:10]}  Ke5 {[%clk 0:00:13]} 51. Re3+ {[%clk 0:00:10]}  Kd6 {[%clk 0:00:14]} 52. Re6+ {[%clk 0:00:10]}  Kc7 {[%clk 0:00:14]} 53. Rc6+ {[%clk 0:00:11]}  Kb8 {[%clk 0:00:14]} 54. Nd7+ {[%clk 0:00:12]}  Kb7 {[%clk 0:00:15]} 55. Nc5+ {[%clk 0:00:10]}  Ka7 {[%clk 0:00:15]} 56. Rc7+ {[%clk 0:00:09]}  Kb8 {[%clk 0:00:15]} 57. Na6+ {[%clk 0:00:10]}  Ka8 {[%clk 0:00:15]} 58. Bc6# {[%clk 0:00:10]} 1-0


[Site "https://www.chess.com"]

[Event "Titled Tuesday Blitz August 22 Late 2023"]
[White "Pham, Le Thao Nguyen"]
[Black "Filgueiras, Nathan Felipe"]
[WhiteFideId "12401226"]
[BlackFideId "2188562"]
[WhiteElo "2656"]
[BlackElo "2520"]
[Result "1-0"]
[Round "11"]
[TimeControl "180+1"]
[Date "2023.08.22"]
[WhiteClock "0:01:00"]
[BlackClock "0:00:06"]
[Board "40"]

1. d4 {[%clk 0:03:00]}  Nf6 {[%clk 0:02:59]} 2. Nf3 {[%clk 0:02:59]}  e6 {[%clk 0:02:59]} 3. Bf4 {[%clk 0:02:59]}  c5 {[%clk 0:02:58]} 4. e3 {[%clk 0:03:00]}  Nc6 {[%clk 0:02:59]} 5. c3 {[%clk 0:03:00]}  d5 {[%clk 0:02:58]} 6. Nbd2 {[%clk 0:03:00]}  Nh5 {[%clk 0:02:58]} 7. Bg3 {[%clk 0:02:54]}  Nxg3 {[%clk 0:02:57]} 8. hxg3 {[%clk 0:02:55]}  cxd4 {[%clk 0:02:53]} 9. exd4 {[%clk 0:02:54]}  g6 {[%clk 0:02:53]} 10. Bd3 {[%clk 0:02:54]}  Bg7 {[%clk 0:02:53]} 11. Qe2 {[%clk 0:02:55]}  Qc7 {[%clk 0:02:48]} 12. Nf1 {[%clk 0:02:54]}  Rb8 {[%clk 0:02:39]} 13. Ne3 {[%clk 0:02:54]}  a6 {[%clk 0:02:39]} 14. g4 {[%clk 0:02:48]}  b5 {[%clk 0:02:38]} 15. a3 {[%clk 0:02:47]}  Bd7 {[%clk 0:02:36]} 16. g5 {[%clk 0:02:47]}  Qb6 {[%clk 0:02:28]} 17. Ng4 {[%clk 0:02:45]}  a5 {[%clk 0:02:27]} 18. b4 {[%clk 0:02:38]}  axb4 {[%clk 0:02:25]} 19. axb4 {[%clk 0:02:39]}  Ke7 {[%clk 0:02:06]} 20. Qe3 {[%clk 0:02:35]}  Nd8 {[%clk 0:01:47]} 21. Nfe5 {[%clk 0:02:31]}  Be8 {[%clk 0:01:42]} 22. Kd2 {[%clk 0:02:26]}  Nc6 {[%clk 0:01:38]} 23. f4 {[%clk 0:02:21]}  Nxe5 {[%clk 0:01:38]} 24. fxe5 {[%clk 0:02:22]}  Qb7 {[%clk 0:01:31]} 25. Ra5 {[%clk 0:02:11]}  Ra8 {[%clk 0:01:28]} 26. Rha1 {[%clk 0:02:12]}  Bc6 {[%clk 0:01:22]} 27. Qf4 {[%clk 0:02:03]}  Rxa5 {[%clk 0:01:19]} 28. Rxa5 {[%clk 0:02:04]}  Ra8 {[%clk 0:01:17]} 29. Nh6 {[%clk 0:02:04]}  Be8 {[%clk 0:00:28]} 30. Rxa8 {[%clk 0:01:58]}  Qxa8 {[%clk 0:00:27]} 31. Ng8+ {[%clk 0:01:59]}  Kf8 {[%clk 0:00:25]} 32. Nf6 {[%clk 0:01:59]}  Qa2+ {[%clk 0:00:18]} 33. Bc2 {[%clk 0:01:58]}  Qa1 {[%clk 0:00:19]} 34. Nxh7+ {[%clk 0:01:54]}  Kg8 {[%clk 0:00:19]} 35. Nf6+ {[%clk 0:01:51]}  Kf8 {[%clk 0:00:20]} 36. Qf2 {[%clk 0:01:40]}  Qh1 {[%clk 0:00:19]} 37. Bd3 {[%clk 0:01:32]}  Qh2 {[%clk 0:00:18]} 38. Be2 {[%clk 0:01:27]}  Qh1 {[%clk 0:00:17]} 39. Bf1 {[%clk 0:01:27]}  Qh2 {[%clk 0:00:17]} 40. Ke3 {[%clk 0:01:26]}  Qh1 {[%clk 0:00:17]} 41. Kf3 {[%clk 0:01:23]}  Ke7 {[%clk 0:00:17]} 42. Kg3 {[%clk 0:01:22]}  Qh8 {[%clk 0:00:16]} 43. Qa2 {[%clk 0:01:18]}  Qh1 {[%clk 0:00:14]} 44. Qa8 {[%clk 0:01:12]}  Qh8 {[%clk 0:00:07]} 45. Qb7+ {[%clk 0:01:07]}  Kf8 {[%clk 0:00:07]} 46. Nxe8 {[%clk 0:00:59]}  Kxe8 {[%clk 0:00:06]} 47. Bxb5+ {[%clk 0:01:00]}  Kf8 {[%clk 0:00:05]} 48. Qb8+ {[%clk 0:01:00]}  Ke7 {[%clk 0:00:06]} 49. Qd6# {[%clk 0:01:00]} 1-0


[Site "https://www.chess.com"]

[Event "Titled Tuesday Blitz August 22 Late 2023"]
[White "Colpe, Malte"]
[Black "Postlmayer, Jakob"]
[WhiteFideId "24623075"]
[BlackFideId "1643622"]
[WhiteElo "2489"]
[BlackElo "2616"]
[Result "1/2-1/2"]
[Round "11"]
[TimeControl "180+1"]
[Date "2023.08.22"]
[WhiteClock "0:01:56"]
[BlackClock "0:02:43"]
[Board "42"]

1. e4 {[%clk 0:03:00]}  e5 {[%clk 0:02:59]} 2. Nf3 {[%clk 0:02:59]}  Nf6 {[%clk 0:02:59]} 3. Nc3 {[%clk 0:02:47]}  Nc6 {[%clk 0:02:58]} 4. d4 {[%clk 0:02:46]}  exd4 {[%clk 0:02:59]} 5. Nxd4 {[%clk 0:02:47]}  Bb4 {[%clk 0:02:58]} 6. Nxc6 {[%clk 0:02:47]}  bxc6 {[%clk 0:02:59]} 7. Bd3 {[%clk 0:02:46]}  O-O {[%clk 0:02:59]} 8. O-O {[%clk 0:02:43]}  d5 {[%clk 0:02:56]} 9. exd5 {[%clk 0:02:38]}  Bg4 {[%clk 0:02:55]} 10. f3 {[%clk 0:02:36]}  Bh5 {[%clk 0:02:55]} 11. dxc6 {[%clk 0:02:34]}  Qd4+ {[%clk 0:02:56]} 12. Kh1 {[%clk 0:02:34]}  Bxc3 {[%clk 0:02:55]} 13. bxc3 {[%clk 0:02:35]}  Qxc3 {[%clk 0:02:56]} 14. Bg5 {[%clk 0:02:33]}  Qxc6 {[%clk 0:02:53]} 15. Qd2 {[%clk 0:01:56]}  Bg6 {[%clk 0:02:43]} 1/2-1/2


[Site "https://www.chess.com"]

[Event "Titled Tuesday Blitz August 22 Late 2023"]
[White "Veiga, Jose Francisco R P Neves"]
[Black "Haszon, David"]
[WhiteFideId "1930087"]
[BlackFideId "733610"]
[WhiteElo "2603"]
[BlackElo "2473"]
[Result "0-1"]
[Round "11"]
[TimeControl "180+1"]
[Date "2023.08.22"]
[WhiteClock "0:01:04"]
[BlackClock "0:00:22"]
[Board "44"]

1. d4 {[%clk 0:03:00]}  Nf6 {[%clk 0:02:59]} 2. Nf3 {[%clk 0:02:59]}  d5 {[%clk 0:02:57]} 3. c4 {[%clk 0:02:58]}  e6 {[%clk 0:02:55]} 4. Nc3 {[%clk 0:02:57]}  Nbd7 {[%clk 0:02:53]} 5. Bg5 {[%clk 0:02:57]}  c6 {[%clk 0:02:48]} 6. e3 {[%clk 0:02:55]}  h6 {[%clk 0:02:44]} 7. Bh4 {[%clk 0:02:54]}  Bb4 {[%clk 0:02:41]} 8. Qc2 {[%clk 0:02:54]}  g5 {[%clk 0:02:35]} 9. Bg3 {[%clk 0:02:54]}  Ne4 {[%clk 0:02:35]} 10. Bd3 {[%clk 0:02:52]}  Nxg3 {[%clk 0:02:29]} 11. hxg3 {[%clk 0:02:53]}  Qf6 {[%clk 0:02:22]} 12. a3 {[%clk 0:02:50]}  Bf8 {[%clk 0:02:21]} 13. e4 {[%clk 0:02:43]}  Bg7 {[%clk 0:02:01]} 14. cxd5 {[%clk 0:02:33]}  exd5 {[%clk 0:01:58]} 15. e5 {[%clk 0:02:27]}  Qe7 {[%clk 0:01:55]} 16. O-O {[%clk 0:02:15]}  h5 {[%clk 0:01:38]} 17. Rfe1 {[%clk 0:02:10]}  Nf8 {[%clk 0:01:34]} 18. b4 {[%clk 0:02:08]}  a6 {[%clk 0:01:32]} 19. a4 {[%clk 0:02:05]}  h4 {[%clk 0:01:31]} 20. gxh4 {[%clk 0:02:03]}  g4 {[%clk 0:01:31]} 21. Nd2 {[%clk 0:01:39]}  Qxh4 {[%clk 0:01:26]} 22. Kf1 {[%clk 0:01:39]}  g3 {[%clk 0:01:21]} 23. Nf3 {[%clk 0:01:39]}  Qh1+ {[%clk 0:01:16]} 24. Ke2 {[%clk 0:01:39]}  Qxg2 {[%clk 0:01:16]} 25. Rf1 {[%clk 0:01:23]}  Bg4 {[%clk 0:01:12]} 26. Kd2 {[%clk 0:01:20]}  Qxf3 {[%clk 0:01:02]} 27. Kc1 {[%clk 0:01:19]}  g2 {[%clk 0:01:01]} 28. Rg1 {[%clk 0:01:17]}  Ne6 {[%clk 0:00:53]} 29. Ne2 {[%clk 0:01:11]}  Qxf2 {[%clk 0:00:30]} 30. Qc3 {[%clk 0:01:08]}  Bxe2 {[%clk 0:00:27]} 31. Kb2 {[%clk 0:01:06]}  Bxd3+ {[%clk 0:00:25]} 32. Ka3 {[%clk 0:01:04]}  Qxd4 {[%clk 0:00:22]} 0-1


[Site "https://www.chess.com"]

[Event "Titled Tuesday Blitz August 22 Late 2023"]
[White "Kozusek, Daniel"]
[Black "ExchangeAB"]
[WhiteFideId "349500"]
[WhiteElo "2601"]
[BlackElo "2461"]
[Result "0-1"]
[Round "11"]
[TimeControl "180+1"]
[Date "2023.08.22"]
[WhiteClock "0:00:23"]
[BlackClock "0:00:35"]
[Board "45"]

1. d4 {[%clk 0:02:59]}  Nf6 {[%clk 0:02:59]} 2. c4 {[%clk 0:02:59]}  c6 {[%clk 0:02:59]} 3. Nc3 {[%clk 0:02:57]}  d5 {[%clk 0:02:59]} 4. cxd5 {[%clk 0:02:58]}  cxd5 {[%clk 0:03:00]} 5. Bf4 {[%clk 0:02:58]}  Nc6 {[%clk 0:03:01]} 6. e3 {[%clk 0:02:59]}  Bf5 {[%clk 0:03:01]} 7. Qb3 {[%clk 0:02:58]}  Na5 {[%clk 0:03:01]} 8. Qa4+ {[%clk 0:02:58]}  Bd7 {[%clk 0:03:01]} 9. Qc2 {[%clk 0:02:58]}  Rc8 {[%clk 0:03:01]} 10. Bd3 {[%clk 0:02:57]}  e6 {[%clk 0:03:00]} 11. Nf3 {[%clk 0:02:56]}  b5 {[%clk 0:03:01]} 12. a3 {[%clk 0:02:51]}  Nc4 {[%clk 0:02:59]} 13. Ne5 {[%clk 0:02:47]}  Be7 {[%clk 0:02:58]} 14. O-O {[%clk 0:02:41]}  O-O {[%clk 0:02:58]} 15. Nxd7 {[%clk 0:02:35]}  Qxd7 {[%clk 0:02:57]} 16. Bg5 {[%clk 0:02:35]}  h6 {[%clk 0:02:56]} 17. Bh4 {[%clk 0:02:32]}  a6 {[%clk 0:02:56]} 18. Qe2 {[%clk 0:02:31]}  Rfd8 {[%clk 0:02:51]} 19. Rac1 {[%clk 0:02:27]}  Ne8 {[%clk 0:02:51]} 20. Bg3 {[%clk 0:02:23]}  Bd6 {[%clk 0:02:50]} 21. f4 {[%clk 0:02:23]}  f5 {[%clk 0:02:48]} 22. Bh4 {[%clk 0:02:19]}  Be7 {[%clk 0:02:45]} 23. Bf2 {[%clk 0:01:57]}  Nf6 {[%clk 0:02:42]} 24. Nb1 {[%clk 0:01:55]}  Nb6 {[%clk 0:02:36]} 25. Nd2 {[%clk 0:01:50]}  Rxc1 {[%clk 0:02:36]} 26. Rxc1 {[%clk 0:01:49]}  Rc8 {[%clk 0:02:36]} 27. Qd1 {[%clk 0:01:49]}  Rxc1 {[%clk 0:02:35]} 28. Qxc1 {[%clk 0:01:49]}  Qc8 {[%clk 0:02:35]} 29. Qxc8+ {[%clk 0:01:48]}  Nxc8 {[%clk 0:02:36]} 30. Nb1 {[%clk 0:01:41]}  Nd7 {[%clk 0:02:35]} 31. Be1 {[%clk 0:01:38]}  Kf7 {[%clk 0:02:34]} 32. Ba5 {[%clk 0:01:37]}  Nd6 {[%clk 0:02:31]} 33. Kf2 {[%clk 0:01:31]}  Nc4 {[%clk 0:02:26]} 34. Bc3 {[%clk 0:01:23]}  Nf6 {[%clk 0:02:23]} 35. Ke2 {[%clk 0:01:16]}  Ng4 {[%clk 0:02:21]} 36. Bxc4 {[%clk 0:01:14]}  dxc4 {[%clk 0:02:20]} 37. h3 {[%clk 0:00:59]}  Nf6 {[%clk 0:02:20]} 38. Ba5 {[%clk 0:00:57]}  Nd5 {[%clk 0:02:19]} 39. Nd2 {[%clk 0:00:53]}  c3 {[%clk 0:02:03]} 40. bxc3 {[%clk 0:00:53]}  Bxa3 {[%clk 0:02:03]} 41. c4 {[%clk 0:00:54]}  bxc4 {[%clk 0:01:57]} 42. Nxc4 {[%clk 0:00:55]}  Bb4 {[%clk 0:01:52]} 43. Ne5+ {[%clk 0:00:55]}  Ke8 {[%clk 0:01:48]} 44. Bxb4 {[%clk 0:00:49]}  Nxb4 {[%clk 0:01:49]} 45. Kd2 {[%clk 0:00:49]}  Nd5 {[%clk 0:01:49]} 46. Nc4 {[%clk 0:00:47]}  Kd7 {[%clk 0:01:45]} 47. g3 {[%clk 0:00:46]}  Kc6 {[%clk 0:01:42]} 48. Kd3 {[%clk 0:00:47]}  Kb5 {[%clk 0:01:41]} 49. Na3+ {[%clk 0:00:22]}  Kb4 {[%clk 0:01:38]} 50. Nc2+ {[%clk 0:00:23]}  Kb3 {[%clk 0:01:37]} 51. Na1+ {[%clk 0:00:24]}  Kb2 {[%clk 0:01:34]} 52. Nc2 {[%clk 0:00:21]}  a5 {[%clk 0:01:31]} 53. g4 {[%clk 0:00:21]}  a4 {[%clk 0:01:09]} 54. gxf5 {[%clk 0:00:20]}  exf5 {[%clk 0:01:09]} 55. Kd2 {[%clk 0:00:21]}  a3 {[%clk 0:01:00]} 56. Nxa3 {[%clk 0:00:19]}  Kxa3 {[%clk 0:01:01]} 57. Kd3 {[%clk 0:00:20]}  Kb4 {[%clk 0:01:00]} 58. e4 {[%clk 0:00:19]}  Nxf4+ {[%clk 0:00:55]} 59. Ke3 {[%clk 0:00:20]}  Nxh3 {[%clk 0:00:54]} 60. exf5 {[%clk 0:00:20]}  Kc4 {[%clk 0:00:44]} 61. Ke4 {[%clk 0:00:20]}  Ng5+ {[%clk 0:00:43]} 62. Ke5 {[%clk 0:00:21]}  Nf3+ {[%clk 0:00:38]} 63. Ke6 {[%clk 0:00:22]}  Nxd4+ {[%clk 0:00:38]} 64. Kf7 {[%clk 0:00:22]}  Nxf5 {[%clk 0:00:35]} 65. Kg6 {[%clk 0:00:23]} 0-1


[Site "https://www.chess.com"]

[Event "Titled Tuesday Blitz August 22 Late 2023"]
[White "Principe, Gerson"]
[Black "Ovezdurdyyeva, Jemal"]
[WhiteFideId "3804550"]
[BlackFideId "14001888"]
[WhiteElo "2586"]
[BlackElo "2429"]
[Result "1/2-1/2"]
[Round "11"]
[TimeControl "180+1"]
[Date "2023.08.22"]
[WhiteClock "0:00:12"]
[BlackClock "0:00:07"]
[Board "48"]

1. Nf3 {[%clk 0:02:59]}  Nf6 {[%clk 0:02:59]} 2. d4 {[%clk 0:02:59]}  g6 {[%clk 0:02:55]} 3. e3 {[%clk 0:02:59]}  Bg7 {[%clk 0:02:55]} 4. Be2 {[%clk 0:03:00]}  O-O {[%clk 0:02:55]} 5. O-O {[%clk 0:03:01]}  b6 {[%clk 0:02:54]} 6. a4 {[%clk 0:02:57]}  a5 {[%clk 0:02:52]} 7. c4 {[%clk 0:02:51]}  Bb7 {[%clk 0:02:50]} 8. Nc3 {[%clk 0:02:52]}  d5 {[%clk 0:02:38]} 9. b3 {[%clk 0:02:40]}  Na6 {[%clk 0:02:30]} 10. Bb2 {[%clk 0:02:37]}  Nb4 {[%clk 0:02:30]} 11. Rc1 {[%clk 0:02:27]}  Ne4 {[%clk 0:02:22]} 12. cxd5 {[%clk 0:02:12]}  Nxc3 {[%clk 0:02:22]} 13. Bxc3 {[%clk 0:02:12]}  Na2 {[%clk 0:02:18]} 14. Rc2 {[%clk 0:02:09]}  Nxc3 {[%clk 0:02:18]} 15. Rxc3 {[%clk 0:02:10]}  Bxd5 {[%clk 0:02:18]} 16. Rc1 {[%clk 0:02:05]}  Qd6 {[%clk 0:02:16]} 17. Bc4 {[%clk 0:01:52]}  Bb7 {[%clk 0:02:15]} 18. Qe2 {[%clk 0:01:51]}  Rad8 {[%clk 0:02:04]} 19. Rfd1 {[%clk 0:01:50]}  Be4 {[%clk 0:01:58]} 20. Nd2 {[%clk 0:01:39]}  Bb7 {[%clk 0:01:53]} 21. Nf3 {[%clk 0:01:38]}  Be4 {[%clk 0:01:40]} 22. Ng5 {[%clk 0:01:34]}  Ba8 {[%clk 0:01:37]} 23. Nf3 {[%clk 0:01:16]}  Qb4 {[%clk 0:01:29]} 24. e4 {[%clk 0:01:11]}  e6 {[%clk 0:01:20]} 25. h4 {[%clk 0:01:07]}  Rd6 {[%clk 0:01:18]} 26. Rd3 {[%clk 0:00:52]}  Rfd8 {[%clk 0:01:13]} 27. Rcd1 {[%clk 0:00:51]}  h6 {[%clk 0:00:42]} 28. e5 {[%clk 0:00:34]}  R6d7 {[%clk 0:00:39]} 29. h5 {[%clk 0:00:30]}  g5 {[%clk 0:00:38]} 30. Nh2 {[%clk 0:00:27]}  c6 {[%clk 0:00:20]} 31. R3d2 {[%clk 0:00:24]}  Rb7 {[%clk 0:00:15]} 32. Bd3 {[%clk 0:00:20]}  Qxb3 {[%clk 0:00:11]} 33. Qe4 {[%clk 0:00:16]}  Rbd7 {[%clk 0:00:11]} 34. Ng4 {[%clk 0:00:16]}  Rxd4 {[%clk 0:00:09]} 35. Qh7+ {[%clk 0:00:16]}  Kf8 {[%clk 0:00:08]} 36. Nf6 {[%clk 0:00:17]}  c5 {[%clk 0:00:07]} 37. Qg8+ {[%clk 0:00:16]}  Ke7 {[%clk 0:00:07]} 38. Qxg7 {[%clk 0:00:16]}  Rxd3 {[%clk 0:00:07]} 39. Rxd3 {[%clk 0:00:14]}  Rxd3 {[%clk 0:00:08]} 40. Re1 {[%clk 0:00:12]}  Rd1 {[%clk 0:00:07]} 41. Rxd1 {[%clk 0:00:10]}  Qxd1+ {[%clk 0:00:08]} 42. Kh2 {[%clk 0:00:11]}  c4 {[%clk 0:00:08]} 43. Ng8+ {[%clk 0:00:11]}  Kd8 {[%clk 0:00:07]} 44. Qf8+ {[%clk 0:00:11]}  Kc7 {[%clk 0:00:06]} 45. Qxa8 {[%clk 0:00:11]}  Qxh5+ {[%clk 0:00:06]} 46. Kg1 {[%clk 0:00:11]}  Qd1+ {[%clk 0:00:06]} 47. Kh2 {[%clk 0:00:11]}  Qh5+ {[%clk 0:00:07]} 48. Kg1 {[%clk 0:00:11]}  Qd1+ {[%clk 0:00:07]} 49. Kh2 {[%clk 0:00:12]}  Qh5+ {[%clk 0:00:07]} 1/2-1/2


[Site "https://www.chess.com"]

[Event "Titled Tuesday Blitz August 22 Late 2023"]
[White "Santos Flores, Alberto"]
[Black "Hambleton, Aman"]
[WhiteFideId "3601234"]
[BlackFideId "2606577"]
[WhiteElo "2571"]
[BlackElo "2770"]
[Result "1-0"]
[Round "11"]
[TimeControl "180+1"]
[Date "2023.08.22"]
[WhiteClock "0:01:03"]
[BlackClock "0:00:06"]
[Board "49"]

1. e4 {[%clk 0:03:00]}  b6 {[%clk 0:02:56]} 2. d4 {[%clk 0:03:00]}  Bb7 {[%clk 0:02:56]} 3. Bd3 {[%clk 0:03:01]}  e6 {[%clk 0:02:50]} 4. Nf3 {[%clk 0:03:00]}  d5 {[%clk 0:02:48]} 5. e5 {[%clk 0:03:00]}  Ba6 {[%clk 0:02:48]} 6. Bxa6 {[%clk 0:02:57]}  Nxa6 {[%clk 0:02:49]} 7. c3 {[%clk 0:02:58]}  Qd7 {[%clk 0:02:40]} 8. O-O {[%clk 0:02:44]}  c5 {[%clk 0:02:40]} 9. Be3 {[%clk 0:02:43]}  Ne7 {[%clk 0:02:39]} 10. Nbd2 {[%clk 0:02:41]}  Nf5 {[%clk 0:02:39]} 11. g4 {[%clk 0:02:40]}  Nxe3 {[%clk 0:02:39]} 12. fxe3 {[%clk 0:02:41]}  Be7 {[%clk 0:02:38]} 13. Kg2 {[%clk 0:02:41]}  Nb8 {[%clk 0:02:33]} 14. a3 {[%clk 0:02:34]}  a5 {[%clk 0:02:23]} 15. Qe2 {[%clk 0:02:32]}  Nc6 {[%clk 0:02:22]} 16. Qf2 {[%clk 0:02:30]}  a4 {[%clk 0:02:18]} 17. Ne1 {[%clk 0:02:26]}  O-O {[%clk 0:02:15]} 18. Nd3 {[%clk 0:02:23]}  f6 {[%clk 0:02:11]} 19. exf6 {[%clk 0:02:23]}  Rxf6 {[%clk 0:02:10]} 20. Qe2 {[%clk 0:02:23]}  Rxf1 {[%clk 0:01:30]} 21. Rxf1 {[%clk 0:02:23]}  Bd6 {[%clk 0:01:31]} 22. Qf3 {[%clk 0:02:08]}  Rf8 {[%clk 0:01:16]} 23. Qd1 {[%clk 0:02:08]}  Rxf1 {[%clk 0:00:58]} 24. Nxf1 {[%clk 0:02:08]}  e5 {[%clk 0:00:59]} 25. Qxa4 {[%clk 0:01:49]}  exd4 {[%clk 0:00:56]} 26. exd4 {[%clk 0:01:46]}  cxd4 {[%clk 0:00:31]} 27. cxd4 {[%clk 0:01:27]}  Qxg4+ {[%clk 0:00:28]} 28. Ng3 {[%clk 0:01:27]}  Bxg3 {[%clk 0:00:18]} 29. hxg3 {[%clk 0:01:26]}  Qe4+ {[%clk 0:00:16]} 30. Kh3 {[%clk 0:01:25]}  Qh1+ {[%clk 0:00:02]} 31. Kg4 {[%clk 0:01:25]}  h5+ {[%clk 0:00:03]} 32. Kg5 {[%clk 0:01:21]}  Qe4 {[%clk 0:00:04]} 33. Ne5 {[%clk 0:01:13]}  Nxe5 {[%clk 0:00:01]} 34. Qe8+ {[%clk 0:01:13]}  Kh7 {[%clk 0:00:02]} 35. Qxh5+ {[%clk 0:01:14]}  Kg8 {[%clk 0:00:02]} 36. Qe8+ {[%clk 0:01:14]}  Kh7 {[%clk 0:00:02]} 37. Qh5+ {[%clk 0:01:15]}  Kg8 {[%clk 0:00:02]} 38. Qe8+ {[%clk 0:01:14]}  Kh7 {[%clk 0:00:02]} 39. Qxe5 {[%clk 0:01:10]}  Qf3 {[%clk 0:00:01]} 40. Qf5+ {[%clk 0:01:09]}  Qxf5+ {[%clk 0:00:01]} 41. Kxf5 {[%clk 0:01:10]}  Kh6 {[%clk 0:00:02]} 42. a4 {[%clk 0:01:10]}  Kh5 {[%clk 0:00:02]} 43. b4 {[%clk 0:01:10]}  Kh6 {[%clk 0:00:01]} 44. a5 {[%clk 0:01:10]}  bxa5 {[%clk 0:00:01]} 45. bxa5 {[%clk 0:01:10]}  g6+ {[%clk 0:00:02]} 46. Kf6 {[%clk 0:01:10]}  Kh5 {[%clk 0:00:02]} 47. a6 {[%clk 0:01:10]}  Kg4 {[%clk 0:00:03]} 48. Kxg6 {[%clk 0:01:09]}  Kf3 {[%clk 0:00:03]} 49. a7 {[%clk 0:01:09]}  Kg4 {[%clk 0:00:03]} 50. a8=Q {[%clk 0:01:09]}  Kh3 {[%clk 0:00:04]} 51. Qxd5 {[%clk 0:01:08]}  Kg4 {[%clk 0:00:04]} 52. Qf5+ {[%clk 0:01:07]}  Kxg3 {[%clk 0:00:04]} 53. d5 {[%clk 0:01:07]}  Kh4 {[%clk 0:00:04]} 54. d6 {[%clk 0:01:06]}  Kg3 {[%clk 0:00:05]} 55. d7 {[%clk 0:01:06]}  Kh4 {[%clk 0:00:05]} 56. d8=Q+ {[%clk 0:01:06]}  Kg3 {[%clk 0:00:06]} 57. Qdg5+ {[%clk 0:01:04]}  Kh2 {[%clk 0:00:06]} 58. Qf2+ {[%clk 0:01:03]}  Kh3 {[%clk 0:00:06]} 59. Qgh4# {[%clk 0:01:03]} 1-0


[Site "https://www.chess.com"]